{"text_format":"3","workbook":"xlsx","n_sheets":1,"sheets":["PRICING SCHEDULE"],"not_rendered":{"images":1,"defined_names":2},"read":"whole","date_system":"1900"}

{"sheet":"PRICING SCHEDULE","index":0,"n_rows":32,"n_cols":20,"rows_kept":32,"merged":[[12,2,12,3],[13,2,13,3],[13,5,15,5],[14,2,14,3],[15,2,15,3],[17,4,17,6],[17,7,17,9],[17,10,17,12],[17,13,17,15],[28,1,31,1],[28,2,28,3],[28,4,28,5],[29,2,29,3],[30,2,30,3],[30,4,30,5],[31,2,31,3],[31,4,31,5]]}
[null,"SUPPLY CHAIN MANAGEMENT"]
[null,"Pricing schedule"]
["RFx No","WO62911"]
["RFx Title","REQUEST FOR BID TO APPOINT A SERVICE PROVIDER TO SUPPLY, CONFIGURATION, INSTALLATION OF SOFTWARE TESTING TOOL FOR FUNCTIONAL, AUTOMATION, PERFORMANCE, SECURITY TESTING INCLUDING MAINTENANCE AND SUPPORT FOR THE PERIOD OF 48 MONTHS"]
["Bidder Name "]
[]
["1. INSTRUCTION FOR COMPLETING THE PRICING SCHEDULE"]
["(a)  THIS PRICING SCHEDULE MUST BE SUBMITTED SEPARATELY FROM THE TECHNICAL RESPONSE, failing which the BID may be DISQUALIFIED."]
["(b)  Bidder must complete/enter YELLOW cells only"]
["(c)  Unit and Line prices must be VAT EXCLUSIVE and in South African Rand (ZAR) currency."]
["(e) The price must include all cost to deliver the goods or render the service, including all applicable taxes, duty fees, logistics/delivery, storage, labour, overtime and subsistance and travel"]
["(f)  Prices that are dependent on Rate of Exchange (ROE) must use ROE indicated below, then enter in Column \"Forex %\" the percentage of the price that is ROE dependent (0% means the price is not ROE dependent)"]
[null,"Foreign currency","South African Rand (ZAR) exchange rate "]
[null,"1 US Dollar",{"$nulls":3},"Mark with an X, which ROE is applicable"]
[null,"1 Euro"]
[null,"1 Pound (UK)"]
[]
[{"$nulls":4},"YEAR 1",null,null,"YEAR 2",null,null,"YEAR 3",null,null,"YEAR 4",null,null,"TOTAL"]
["Item No","Goods/Service description","Unit of measure","Forex %","Qty ","Unit Price \n(Excl VAT)","Line Price Y1","Qty","Unit Price \n(Excl VAT)","Line Price Y2","Qty","Unit Price \n(Excl VAT)","Line Price Y3","Qty","Unit Price \n(Excl VAT)","Line Price Y4","Line Price Term \n(Excl VAT)","Forex Price portion","BRAND / MODEL","Price clarification comment"]
[1,"Software testing tools for Functional, automation, performance and security testing",{"$nulls":4},{"$f":"SUBTOTAL(9,G21:G23)","v":0},null,null,{"$f":"SUBTOTAL(9,J21:J23)","v":0},null,null,{"$f":"SUBTOTAL(9,M21:M23)","v":0},null,null,{"$f":"SUBTOTAL(9,P21:P23)","v":0},{"$f":"SUBTOTAL(9,Q21:Q23)","v":0},{"$f":"SUBTOTAL(9,R21:R23)","v":0}]
["1.1","Software testing tool Functional, automation, performance and security testing","Each",{"v":0,"d":"0%"},1,0,{"$f":"E21*F21","v":0},0,null,{"$f":"H21*I21","v":0},0,null,{"$f":"K21*L21","v":0},0,null,{"$f":"N21*O21","v":0},{"$f":"SUM(G21,J21,M21)","v":0},{"$f":"D21*Q21","v":0}]
["1.2","Maintenance and support (4years)","Annually",{"v":0,"d":"0%"},1,0,{"$f":"E22*F22","v":0},1,0,{"$f":"H22*I22","v":0},1,0,{"$f":"K22*L22","v":0},1,0,{"$f":"N22*O22","v":0},{"$f":"SUM(G22,J22,M22,P22)","v":0},{"$f":"D22*Q22","v":0}]
["1.3","Training(once off)","Each",{"v":0,"d":"0%"},20,0,0,0,null,0,0,null,{"$f":"K23*L23","v":0},0,null,0,{"$f":"SUM(G23,J23,M23)","v":0},{"$f":"D23*Q23","v":0}]
[null,"TOTAL BID PRICE  (EXCL VAT)",{"$nulls":4},{"$f":"SUBTOTAL(9,G20:G23)","v":0},null,null,{"$f":"SUBTOTAL(9,J20:J23)","v":0},null,null,{"$f":"SUBTOTAL(9,M20:M23)","v":0},null,null,{"$f":"SUBTOTAL(9,P20:P23)","v":0},{"$f":"SUBTOTAL(9,Q20:Q23)","v":0},{"$f":"SUBTOTAL(9,R20:R23)","v":0}]
[null,"VAT (@15%)",{"$nulls":4},{"$f":"G24*0.15","v":0},null,null,{"$f":"J24*0.15","v":0},null,null,{"$f":"M24*0.15","v":0},null,null,{"$f":"P24*0.15","v":0},{"$f":"Q24*0.15","v":0}]
[null,"TOTAL  BID PRICE (INCL VAT)",{"$nulls":4},{"$f":"G24+G25","v":0},null,null,{"$f":"J24+J25","v":0},null,null,{"$f":"M24+M25","v":0},null,null,{"$f":"P24+P25","v":0},{"$f":"Q24+Q25","v":0}]
[]
[]
[null,"I, the bidder, confirm that the price(s) and rate(s) quoted cover all the goods and/or works specified in the bidding documents; that the price(s) or rate(s) cover all my obligations and I accept that any mistakes regarding price(s), rate(s) or calculations will be at my own risk.\n[Note: First convert to PDF, then add signature]"]
[null,null,"Name",null,"Capacity"]
[]
[null,null,"Signature (above)",null,"Date"]